[Event "125-Jahre Werder Bremen 2024"]
[Site "Bremen"]
[Date "2024.03.02"]
[Round "1.7"]
[White "Plat, Vojtech"]
[Black "Kopylov, Michael"]
[Result "1/2-1/2"]
[ECO "C01"]
[WhiteElo "2528"]
[BlackElo "2352"]
[Annotator "TA"]
[PlyCount "68"]
[EventDate "2024.02.26"]
[EventType "swiss"]
[EventCountry "GER"]
[SourceTitle "playchess.com"]
[Source "ChessBase"]
[SourceQuality "1"]
[TimeControl "40/6000+30:1800+30"]

{[%evp 10,68,3,-8,1,-8,-16,-21,-8,-15,21,37,31,33,31,27,96,101,103,83,103,105,93,83,95,110,107,101,104,110,95,81,119,133,135,137,152,0,0,0,0,0,0,-12,-10,-12,-13,-14,-12,-11,-16,-11,0,-48,-18,-49,-54,-76,-85,-77,-63]} 1. e4 {[%emt 0:00:06]} e6 {[%emt 0:01:21]} 2. d4 {[%emt 0:00:08]} d5 {[%emt 0:00:12]} 3. Bd3 {[%emt 0:00:07][%cal Bf1d3,Bd3e4,Be4f3][%mdl 32]} dxe4 {[%emt 0:07:29]} 4. Bxe4 {[%emt 0:00:07]} Nf6 {[%emt 0:00:01]} 5. Bf3 {[%emt 0:00:08]} c5 {[%emt 0:00:03]} 6. Ne2 {[%emt 0:00:17]} Nc6 {[%emt 0:00:12]} 7. c3 {[%emt 0:00:17]} Be7 {[%emt 0:01:15]} 8. O-O {[%emt 0:00:13]} O-O {[%emt 0:01:46] The position is equal.} 9. Be3 {[%emt 0:03:16]} Nd5 {[%emt 0:06:15]} 10. Bxd5 {[%emt 0:01:04]} Qxd5 {[%emt 0:05:20]} 11. dxc5 {[%emt 0:00:10]} Qh5 {[%emt 0:11:25][%cal Of8d8]} 12. Nd4 {[%emt 0:03:06]} Qh4 {[%emt 0:07:04]} (12... Qg6 $11) 13. Nxc6 $16 {[%emt 0:05:51]} bxc6 {[%emt 0:00:12]} 14. Qf3 {[%emt 0:00:23]} Rb8 {[%emt 0:14:40]} 15. b3 {[%emt 0:00:22]} (15. Qxc6 $6 Rxb2 16. Nd2 Bb7 $11) 15... Bf6 {[%emt 0:01:13]} 16. Bf4 {[%emt 0:06:01]} (16. Qxc6 Bb7 17. Qa4 Qxa4 18. bxa4 Bc6 $16) 16... e5 {[%emt 0:04:48]} 17. Bg3 {[%emt 0:00:09]} Qg5 {[%emt 0:00:45]} 18. h4 {[%emt 0:03:14]} Qh6 {[%emt 0:11:03]} 19. Qxc6 {[%emt 0:00:39]} Bb7 {[%emt 0:00:45]} 20. Qa4 {[%emt 0:00:06][%cal Ob1a3]} Rfc8 {[%emt 0:03:16]} 21. Na3 {[%emt 0:06:58]} Rxc5 {[%emt 0:04:21]} 22. Qxa7 {[%emt 0:00:15]} Rcc8 {[%emt 0:00:05][%cal Of6e7]} 23. Qe3 $2 {[%emt 0:00:04] [#]} (23. Nc4 $16 {Strongly threatening Nd6.} Bxh4 24. Bxh4 (24. Nxe5 Qg5 $14) (24. Bxe5 Qc6 $16) 24... Qxh4 25. f3 (25. Nxe5 $2 Qg5 $19)) 23... Qxe3 $11 {[%emt 0:02:25]} (23... Bxh4 $2 24. Qxh6 (24. Qxe5 $2 Qc6 $19) (24. Bxe5 Bg5 $16) 24... gxh6 25. Bxh4 $18) 24. fxe3 {[%emt 0:00:04]} Rxc3 {[%emt 0:00:33]} 25. Nc4 {[%emt 0:00:06][%cal Oa1c1]} Ra8 $1 {[%emt 0:00:11]} 26. Nd6 {[%emt 0:17:23]} (26. Nxe5 $2 {perishes.} Rxe3 27. Bf4 Re2 $19 (27... Rxe5 $2 28. Bxe5 Bxe5 29. Rad1 $19)) (26. Bxe5 $2 Rxc4 27. bxc4 (27. Bxf6 $2 Rg4 $19) 27... Bxe5 $19) 26... Bd5 {[%emt 0:06:20] A strong pair of Bishops.} (26... Rxe3 $2 27. Bf2 Re2 28. Nxb7 $18) 27. Rad1 {[%emt 0:00:44]} Be6 {[%emt 0:02:43]} (27... Rxe3 $2 {loses.} 28. Bf2 Rxa2 29. Rxd5 $18 (29. Bxe3 Rxg2+ 30. Kh1 Rd2+ 31. Kg1 Rg2+ 32. Kh1 Rd2+ 33. Kg1 Rg2+ $11)) 28. Rd2 {[%emt 0:01:14]} Rxe3 {[%emt 0:00:59]} 29. Bf2 {[%emt 0:00:09]} Rc3 {[%emt 0:00:06]} 30. Ne4 {[%emt 0:00:07]} Rc6 {[%emt 0:01:06]} 31. Bg3 {[%emt 0:06:32]} (31. Nc5 $11 {was preferrable.}) 31... Be7 {[%emt 0:02:53] aiming for ...f6.} 32. Bxe5 {[%emt 0:00:26]} Bxh4 {[%emt 0:01:22]} 33. Bd4 {[%emt 0:01:48]} Be7 {[%emt 0:01:31]} 34. Rf3 {[%emt 0:00:28]} f6 {[%emt 0:03:47] Weighted Error Value: White=0.13 (very precise) /Black=0.10 (very precise) .  Mistake:       	White=2     	Black=1      Inaccurate:     	White=1     	Black=3      OK:         	White=10    	Black=14     Best:        	White=1     	Black=3      Strong:       	---       	Black=1} 1/2-1/2

[Event "125-Jahre Werder Bremen 2024"]
[Site "Bremen"]
[Date "2024.03.02"]
[Round "1.8"]
[White "Kopylov, Daniel"]
[Black "Krastev, Alexander"]
[Result "1/2-1/2"]
[ECO "B83"]
[WhiteElo "2346"]
[BlackElo "2457"]
[Annotator "TA"]
[PlyCount "41"]
[EventDate "2024.02.26"]
[EventType "swiss"]
[EventCountry "GER"]
[SourceTitle "playchess.com"]
[Source "ChessBase"]
[SourceQuality "1"]
[TimeControl "40/6000+30:1800+30"]

{[%evp 20,41,-41,-38,-27,-57,-57,-74,-72,-73,-54,-52,-55,-58,-60,-50,-40,-48,-48,-47,-29,-26,-39,-18]} 1. e4 {[%emt 0:00:50]} c5 {[%emt 0:00:19]} 2. Nf3 {[%emt 0:00:17]} Nc6 {[%emt 0:00:11]} 3. d4 {[%emt 0:00:36]} cxd4 {[%emt 0:00:07]} 4. Nxd4 {[%emt 0:00:07]} e6 {[%emt 0:00:10]} 5. Nc3 {[%emt 0:00:10]} d6 {[%emt 0:00:06]} 6. Be2 {[%emt 0:05:04]} Nf6 {[%emt 0:00:33]} 7. O-O {[%emt 0:00:34]} Be7 {[%emt 0:00:05]} 8. Be3 {[%emt 0:00:23]} O-O {[%emt 0:00:09]} 9. f4 {[%emt 0:01:44]} e5 {[%emt 0:27:30]} 10. Nf5 {[%emt 0:13:00]} Bxf5 {[%emt 0:06:14]} 11. exf5 {[%emt 0:00:20]} exf4 {[%emt 0:03:15]} 12. Rxf4 {[%emt 0:19:15]} d5 {[%emt 0:00:44][%cal Od5d4]} 13. Kh1 {[%emt 0:04:46]} Re8 {[%emt 0:05:24] Black is better.} 14. Bg1 {[%emt 0:03:41]} Bd6 {[%emt 0:16:13]} 15. Rf1 {[%emt 0:05:36][%cal Oe2f3]} Be5 {[%emt 0:03:14]} 16. Bf3 {[%emt 0:09:11]} Bxc3 {[%emt 0:42:57]} 17. bxc3 {[%emt 0:03:20]} Qa5 {[%emt 0:00:05]} 18. Qb1 {[%emt 0:10:58]} Re7 {[%emt 0:01:41][%cal Oa8e8]} 19. Qb3 {[%emt 0:01:43]} Rae8 {[%emt 0:00:31]} 20. Rad1 {[%emt 0:03:56]} Rd7 {[%emt 0:00:10]} 21. a4 {[%emt 0:08:46] Weighted Error Value: White=0.06 (flawless) /Black=0.05 (flawless) .  Inaccurate:     	White=1     	---        OK:         	White=6     	Black=4} 1/2-1/2

[Event "125-Jahre Werder Bremen 2024"]
[Site "Bremen"]
[Date "2024.03.02"]
[Round "1.9"]
[White "Knaak, Rainer"]
[Black "Radeva, Viktoria"]
[Result "1/2-1/2"]
[ECO "D35"]
[WhiteElo "2450"]
[BlackElo "2325"]
[Annotator "TA"]
[PlyCount "76"]
[EventDate "2024.02.26"]
[EventType "swiss"]
[EventCountry "GER"]
[SourceTitle "playchess.com"]
[Source "ChessBase"]
[SourceQuality "1"]
[TimeControl "40/6000+30:1800+30"]

{[%evp 16,76,19,18,22,15,24,18,15,18,19,14,25,16,15,22,20,6,22,4,9,16,14,17,22,0,0,-10,-7,-19,-9,-39,-37,-34,-43,-29,-54,-25,-13,-75,-37,-41,-23,-15,-19,-10,0,0,0,-97,0,0,0,0,0,0,0,0,0,0,0,0,0]} 1. d4 {[%emt 0:00:09]} d5 {[%emt 0:00:10]} 2. c4 {[%emt 0:00:07]} e6 {[%emt 0:00:03]} 3. Nc3 {[%emt 0:00:14]} c6 {[%emt 0:00:12]} 4. Nf3 {[%emt 0:00:25]} Nf6 {[%emt 0:00:18]} 5. Bg5 {[%emt 0:00:44]} Nbd7 {[%emt 0:00:28]} 6. cxd5 {[%emt 0:01:58]} exd5 {[%emt 0:00:06]} 7. e3 {[%emt 0:00:07]} Be7 {[%emt 0:07:48]} 8. Bd3 {[%emt 0:01:18]} Ne4 {[%emt 0:03:18]} 9. Bf4 {[%emt 0:09:27]} Ndf6 {[%emt 0:01:43]} 10. Qc2 {[%emt 0:01:13]} O-O {[%emt 0:15:19]} 11. O-O {[%emt 0:02:10]} Bf5 {[%emt 0:01:01]} 12. Ng5 {[%emt 0:12:11]} Nxg5 {[%emt 0:15:52]} 13. Bxf5 {[%emt 0:00:10]} Ne6 {[%emt 0:00:30]} 14. Be5 {[%emt 0:20:41]} g6 {[%emt 0:04:55]} 15. Bxe6 {[%emt 0:00:21]} fxe6 {[%emt 0:00:05]} 16. Qe2 {[%emt 0:00:52]} Bd6 {[%emt 0:02:17]} 17. Rad1 {[%emt 0:01:28]} Bxe5 {[%emt 0:10:27]} 18. dxe5 {[%emt 0:00:12]} Nd7 {[%emt 0:00:10]} 19. f4 {[%emt 0:01:50]} Qe7 {[%emt 0:01:52]} 20. Rf3 {[%emt 0:04:04]} Rf7 {[%emt 0:02:57]} 21. e4 {[%emt 0:20:00][%cal Re4d5]} Raf8 {[%emt 0:10:07]} 22. exd5 $1 {[%emt 0:03:57]} cxd5 {[%emt 0:00:21]} 23. Qe3 {[%emt 0:03:19][%cal Oc3b5]} Qb4 {[%emt 0:03:53][%csl LRb2,LRf4]} 24. g3 {[%emt 0:12:20]} Qxb2 {[%emt 0:07:42]} 25. Rb1 {[%emt 0:00:30]} Qa3 {[%emt 0:00:40]} 26. Nb5 {[%emt 0:00:36]} Qxa2 {[%emt 0:01:19]} (26... Qxe3+ {simplifies} 27. Rxe3 Nc5 28. Ra3 g5) 27. Rff1 {[%emt 0:02:26]} (27. Qe1 $1 $11) 27... Nb6 {[%emt 0:02:25][%cal Bd7b6,Bb6c4,Bc4b2][%mdl 32] Hoping for ...Nc4.} 28. Ra1 {[%emt 0:02:03]} Qb2 {[%emt 0:02:37]} 29. Rfb1 $1 {[%emt 0:00:15][%cal Bf1b1,Bb1a1,Ba1a7][%mdl 32]} Qc2 {[%emt 0:01:26]} 30. Nd4 {[%emt 0:03:39]} Qc8 {[%emt 0:01:37]} 31. Rxa7 {[%emt 0:00:08]} Nc4 {[%emt 0:00:13]} 32. Qd3 {[%emt 0:00:36] [#]} (32. Qc3 $1 $11 {keeps the balance.}) 32... b6 {[%emt 0:04:16]} (32... g5 $1 $17) 33. Rba1 $11 {[%emt 0:00:51] The position is equal.} Rxa7 {[%emt 0:06:10]} 34. Rxa7 {[%emt 0:00:06]} Qc5 {[%emt 0:01:22]} 35. Kg2 {[%emt 0:00:53]} Nb2 {[%emt 0:02:18]} 36. Qd2 {[%emt 0:00:57] [#] And now f5 would win.} Nc4 {[%emt 0:00:03]} 37. Qd3 {[%emt 0:02:17]} Nb2 {[%emt 0:00:33]} 38. Qd2 {[%emt 0:01:51] Strongly threatening f5.} Nc4 {[%emt 0:00:05] Weighted Error Value: White=0.11 (very precise) /Black=0.08 (flawless) .  Mistake:       	White=2     	Black=1      Inaccurate:     	White=1     	Black=1      OK:         	White=12    	Black=13     Best:        	White=1     	Black=2      Strong:       	White=2     	---} 1/2-1/2

[Event "125-Jahre Werder Bremen 2024"]
[Site "Bremen"]
[Date "2024.03.02"]
[Round "1.10"]
[White "Schneider, Jana"]
[Black "Wachinger, Nikolas"]
[Result "0-1"]
[ECO "B90"]
[WhiteElo "2303"]
[BlackElo "2442"]
[Annotator "TA"]
[PlyCount "128"]
[EventDate "2024.02.26"]
[EventType "swiss"]
[EventCountry "GER"]
[SourceTitle "playchess.com"]
[Source "ChessBase"]
[SourceQuality "1"]
[TimeControl "40/6000+30:1800+30"]

{[%evp 18,128,4,10,20,14,30,20,9,20,19,0,0,4,0,15,3,9,6,10,26,0,22,0,0,0,0,-3,-12,-8,0,-1,30,-31,-33,-64,-56,-148,-142,-476,-472,-501,-528,-515,-468,-525,-497,-446,-249,-287,-240,-256,-187,-210,-106,-107,-101,-169,-161,-175,-173,-199,-191,-214,-220,-231,-214,-333,-234,-246,-224,-233,-231,-237,-229,-233,-124,-272,-273,-250,-265,-491,-252,-270,-262,-275,-256,-261,-255,-383,-394,-375,-394,-305,-266,-333,-267,-779,-762,-891,-883,-864,-850,-741,-724,-1473,-1096,-1437,-1418,-29971,-29972,-29973,-6007]} 1. e4 {[%emt 0:00:04]} c5 {[%emt 0:00:30]} 2. Nf3 {[%emt 0:00:10]} d6 {[%emt 0:00:13]} 3. d4 {[%emt 0:00:10]} cxd4 {[%emt 0:00:07]} 4. Nxd4 {[%emt 0:00:06]} Nf6 {[%emt 0:00:09]} 5. Nc3 {[%emt 0:00:10]} a6 {[%emt 0:00:10]} 6. Be3 {[%emt 0:00:19]} e5 {[%emt 0:00:17]} 7. Nf3 {[%emt 0:00:12]} Be7 {[%emt 0:00:19]} 8. Bc4 {[%emt 0:00:18]} O-O {[%emt 0:01:18]} 9. O-O {[%emt 0:00:12]} Nc6 {[%emt 0:00:17]} 10. Qe2 {[%emt 0:01:02]} Be6 {[%emt 0:03:30]} 11. Rfd1 {[%emt 0:06:34]} Rc8 {[%emt 0:10:59][%cal Oc6d4]} 12. Bb3 {[%emt 0:04:05]} Qc7 {[%emt 0:13:57] The position is equal.} 13. Bg5 {[%emt 0:03:22]} Na5 {[%emt 0:03:36]} 14. Bxf6 {[%emt 0:04:57]} Bxf6 {[%emt 0:04:56]} 15. Rac1 {[%emt 0:08:57]} Qc5 {[%emt 0:08:05]} 16. Nd5 {[%emt 0:04:59]} Bd8 {[%emt 0:03:04]} 17. Ne3 {[%emt 0:06:19]} Nxb3 {[%emt 0:15:57]} 18. axb3 {[%emt 0:00:23]} a5 {[%emt 0:17:24]} 19. Rd3 {[%emt 0:13:07]} Qc6 {[%emt 0:03:49]} 20. Nd5 {[%emt 0:01:38]} (20. Nd2 $5) 20... f5 {[%emt 0:01:47]} 21. Rc3 {[%emt 0:06:26]} Qd7 {[%emt 0:00:35]} 22. Rxc8 {[%emt 0:05:58]} Qxc8 {[%emt 0:00:03]} 23. Nc3 $1 {[%emt 0:00:41]} Qc6 {[%emt 0:04:58]} 24. Rd1 {[%emt 0:05:05]} Kh8 {[%emt 0:02:24]} 25. Qb5 {[%emt 0:12:41]} ({Better is} 25. exf5 $11 Bxf5 26. Rd2) 25... Bc7 $15 {[%emt 0:02:41]} (25... fxe4 $6 26. Qxc6 bxc6 27. Rxd6 $16 (27. Nxe4 Be7 $15)) 26. Ng5 {[%emt 0:02:13]} Bg8 {[%emt 0:02:21]} 27. Qd3 {[%emt 0:08:04]} (27. exf5 $15 Rxf5 28. Nf3) 27... h6 $17 {[%emt 0:02:00]} 28. Qh3 $2 {[%emt 0:01:44][%mdl 8192]} (28. Nf3 $17 fxe4 29. Qxe4) 28... Bd8 $19 {[%emt 0:01:08]} 29. Nf3 {[%emt 0:04:08]} fxe4 {[%emt 0:00:06]} 30. Nd2 {[%emt 0:02:50]} d5 {[%emt 0:00:12] Repels Nc4} 31. Qh5 {[%emt 0:01:56]} Bb6 {[%emt 0:01:57]} 32. Rf1 {[%emt 0:02:34]} Qf6 {[%emt 0:02:04] White is weak on the dark squares} (32... e3 $142 33. fxe3 Bxe3+ 34. Kh1 Rf6 35. Qxe5 Bxd2 (35... Re6 $2 36. Qxd5 Qxd5 37. Nxd5 $19) 36. Rxf6 Qxf6 37. Qxf6 gxf6) 33. Qe2 {[%emt 0:00:29]} Qf4 {[%emt 0:01:09]} 34. Nd1 {[%emt 0:03:06]} Rf6 {[%emt 0:00:41]} 35. c4 {[%emt 0:00:48]} Rg6 {[%emt 0:02:26]} (35... d4 $1 $19 {Strongly threatening ...Bh7.} 36. g3 d3) 36. cxd5 $17 {[%emt 0:00:51]} Bxd5 {[%emt 0:00:46]} 37. Nc3 {[%emt 0:00:03] [#]} (37. Ne3 $17 {is a better defense.} Bxe3 38. fxe3) 37... Bc6 $1 $19 {[%emt 0:01:09]} 38. Ncxe4 {[%emt 0:01:29]} Bd4 {[%emt 0:00:40]} 39. g3 {[%emt 0:00:48]} Qf5 $40 {[%emt 0:01:14][%mdl 128] Black attacks with force.} 40. Re1 {[%emt 0:00:47]} Bxb2 {[%emt 0:00:51] This pair of bishops is nice.} 41. Nf3 {[%emt 0:30:37]} Rg4 {[%emt 0:04:53] Dodges Nh4} 42. Ned2 {[%emt 0:00:00]} (42. Nfd2 $142) 42... Bd5 {[%emt 0:20:25]} 43. Nxe5 {[%emt 0:00:00]} Bxe5 {[%emt 0:00:09]} 44. Qxe5 {[%emt 0:00:00]} Qxe5 {[%emt 0:00:02]} 45. Rxe5 {[%emt 0:00:00][%mdl 4096] Endgame. KRB-KRN} Rd4 {[%emt 0:00:06]} 46. Re2 {[%emt 0:00:00]} Rd3 {[%emt 0:00:21]} ({Black should try} 46... b5 $19 {And now ...a4 would win.} 47. f3 Rd3) 47. f4 {[%emt 0:00:00]} (47. Kf1 $17 {might work better.}) 47... Bxb3 {[%emt 0:00:10]} 48. Nxb3 {[%emt 0:00:00]} Rxb3 {[%emt 0:00:03] KR-KR} 49. Re8+ {[%emt 0:00:00]} Kh7 {[%emt 0:00:03]} 50. Ra8 {[%emt 0:00:00] [#]} b6 {[%emt 0:00:46]} 51. Ra6 {[%emt 0:00:00]} h5 {[%emt 0:02:07]} 52. Kf2 {[%emt 0:00:00]} Kg6 {[%emt 0:00:32]} 53. h3 {[%emt 0:00:00]} (53. Ke1 $142) 53... Kf5 {[%emt 0:00:28]} 54. Ra7 {[%emt 0:00:00]} g6 {[%emt 0:00:12]} 55. Rf7+ {[%emt 0:00:00]} Ke6 {[%emt 0:01:55]} 56. Rg7 {[%emt 0:00:00]} Kf6 {[%emt 0:00:19]} 57. Rc7 {[%emt 0:00:00]} (57. Ra7) 57... a4 {[%emt 0:01:13]} 58. g4 {[%emt 0:00:00]} a3 {[%emt 0:01:00]} 59. Rc6+ {[%emt 0:00:00]} Kf7 {[%emt 0:00:19]} 60. Rc7+ {[%emt 0:00:00]} Ke6 {[%emt 0:00:08] ...h4 is the strong threat.} 61. Kg2 {[%emt 0:00:00]} h4 {[%emt 0:01:01]} 62. Ra7 {[%emt 0:00:00]} Kd5 {[%emt 0:00:48] Threatens to win with ...b5.} 63. g5 {[%emt 0:00:00]} Ke4 {[%emt 0:00:23]} 64. Ra4+ {[%emt 0:00:00]} Kf5 {[%emt 0:00:09] Weighted Error Value: White=0.57/Black=0.20 (precise) .  Loses game:     	White=1     	---        Mistake:       	White=7     	Black=3      Inaccurate:     	White=1     	Black=2      OK:         	White=19    	Black=19     Best:        	White=1     	Black=4      Strong:       	White=1     	Black=1} (64... Ke3 $142 65. f5 b5 (65... gxf5 66. g6 $11) 66. Ra7 Rb2+ (66... gxf5 $2 67. g6 $19) 67. Kg1 a2 (67... gxf5 68. g6 $11) 68. Ra3+ Ke4 69. Kf1 b4 (69... gxf5 {gets mated.} 70. g6 b4 71. Ra6 Rb1+ 72. Ke2 a1=Q 73. Rxa1 Rxa1 74. Kd2 Rg1 75. Kc2 Rxg6 76. Kb3 Rb6 77. Kc4 b3 78. Kc5 Rh6 79. Kb4 b2 80. Kc3 b1=Q 81. Kd2 Rb6 82. Ke2 Rb2#) 70. Ra4 Kxf5 71. Ra8 Kf4 (71... Kxg5 72. Ra7 Rc2 73. Ra5+ Kh6 74. Ra4 b3 75. Rxh4+ Kg7 76. Ra4 b2 77. Ra7+ Kh6 78. Re7 b1=Q+ 79. Re1) 72. Ra7 Kg3 (72... Kxg5 73. Ra5+ Kf4 74. Ke1 b3 75. Kf1 Kg3 76. Ke1 Kh2 77. Kd1 Rg2 78. Ke1 b2 79. Rd5 b1=Q+ 80. Rd1 Qe4+ 81. Kf1 Qe2#) 73. Ke1 b3 (73... Kxh3 74. Kd1 b3 75. Ke1 Kg2 76. Kd1 h3 77. Ra4 h2 78. Rg4+ Kf3 79. Rf4+ Kxf4 80. Ke1 h1=Q#) (73... Rb1+ 74. Kd2 a1=Q 75. Rxa1 Rxa1 76. Kd3 Rc1 77. Ke3 b3 78. Ke4 b2 79. Ke5 b1=Q 80. Kf6 Rc7 81. Ke6 Qb5 82. Kd6 Rd7+ 83. Ke6 Qf5#) 74. Ra6 Kh2 (74... Kxh3 75. Kd1 Kg2 76. Ra4 h3 77. Rg4+ Kf3 78. Ra4 h2 79. Rf4+ Kxf4 80. Ke1 h1=Q#) (74... Rb1+ 75. Kd2 a1=Q 76. Rxa1 Rxa1 77. Kc3 Rc1+ 78. Kxb3 Kxh3 79. Kb2 Rc8 80. Ka3 Kg4 81. Kb4 h3 82. Kb5 h2 83. Ka6 h1=Q 84. Kb6 Qc6+ 85. Ka5 Qb7 86. Ka4 Ra8#) 75. Ra4 Rg2 (75... Kxh3 76. Kd1 Rg2 77. Ra3 Kh2 78. Ra4 b2 79. Rxh4+ Kg3 80. Rg4+ Kxg4 81. Ke1 b1=Q#) 76. Ra8 b2 (76... Kxh3 77. Ra7 b2 78. Ra3+ Kh2 79. Rd3 b1=Q+ 80. Rd1 Qe4+ 81. Kf1 Qe2#) 77. Rd8 b1=Q+ (77... b1=R+ $2 78. Rd1 Rxd1+ 79. Kxd1 a1=Q#) 78. Rd1 Qe4+ 79. Kf1 Qe2#) 0-1

[Event "125-Jahre Werder Bremen 2024"]
[Site "Bremen"]
[Date "2024.03.02"]
[Round "1.11"]
[White "Pajeken, Jakob Leon"]
[Black "Wiegmann, Sascha"]
[Result "0-1"]
[ECO "B92"]
[WhiteElo "2424"]
[BlackElo "2297"]
[Annotator "TA"]
[PlyCount "56"]
[EventDate "2024.02.26"]
[EventType "swiss"]
[EventCountry "GER"]
[SourceTitle "playchess.com"]
[Source "ChessBase"]
[SourceQuality "1"]
[TimeControl "40/6000+30:1800+30"]

{[%evp 16,56,53,56,68,63,89,0,0,0,0,-24,-34,-68,-60,-25,-35,-59,-9,-181,-147,-151,-125,-289,-246,-272,-275,-738,-738,-608,-608,-990,-1091,-1126,-1119,-1125,-1128,-1122,-1112,-1094,-1071,-5385,-5357]} 1. e4 {[%emt 0:00:42]} c5 {[%emt 0:00:24]} 2. Nf3 {[%emt 0:00:26][%cal Bg1f3,Bf3d4,Bd4b3][%mdl 32]} d6 {[%emt 0:00:02]} 3. Nc3 {[%emt 0:00:26]} Nf6 {[%emt 0:01:05]} 4. d4 {[%emt 0:00:06]} cxd4 {[%emt 0:00:10]} 5. Nxd4 {[%emt 0:00:04]} a6 {[%emt 0:00:06]} 6. Be2 {[%emt 0:01:26]} e5 {[%emt 0:03:12]} 7. Nb3 {[%emt 0:00:08]} Be6 {[%emt 0:00:15]} 8. f4 {[%emt 0:00:10][%cal Bf2f4,Bf4f5][%mdl 32]} Qc7 {[%emt 0:02:19]} 9. g4 {[%emt 0:00:05] Strongly threatening g5.} b5 {[%emt 0:06:40]} 10. f5 {[%emt 0:23:56]} Bc4 {[%emt 0:01:06]} 11. a3 {[%emt 0:35:23]} (11. g5 $16 Bxe2 12. Qxe2) 11... h6 $11 {[%emt 0:09:18] The position is equal.} 12. Be3 {[%emt 0:05:44]} Nbd7 {[%emt 0:01:46]} 13. Bf3 {[%emt 0:05:07]} Rc8 {[%emt 0:38:00][%cal Od6d5]} 14. Qd2 {[%emt 0:02:21]} Be7 {[%emt 0:11:43][%cal Od6d5]} (14... d5 $5 15. exd5 (15. Nxd5 Bxd5 16. exd5 Bd6 $17) 15... b4 16. axb4 Bxb4 $11) 15. h4 {[%emt 0:08:09] [#]} d5 $1 {[%emt 0:13:59]} 16. exd5 {[%emt 0:00:59]} e4 $1 {[%emt 0:00:02]} 17. Bf4 {[%emt 0:03:23]} (17. Nxe4 Nxe4 18. Bxe4 O-O $17) (17. Bxe4 O-O 18. Bg2 Bxb3 (18... Nxg4 19. O-O-O $17) 19. cxb3 Qg3+ (19... Nxg4 20. O-O-O $15) 20. Qf2 Qxg4 $17) (17. Be2 $1 $11 {and White is okay.}) 17... Bd6 {[%emt 0:00:06]} 18. Bxd6 {[%emt 0:00:55]} (18. Bxe4 $2 Bxf4 19. Qd4 Bxb3 (19... Nxg4 $2 20. d6 $19) 20. cxb3 Be5 $19 (20... Nxg4 $2 21. Qxg7 Qe5 22. Qxe5+ Bxe5 23. d6 $19)) 18... Qxd6 {[%emt 0:00:02]} 19. Nxe4 {[%emt 0:01:43] [#]} (19. Bg2 $17 Bxb3 (19... Nxd5 20. O-O-O $16) (19... Nxg4 20. Nxe4 Qe5 21. Nd4 $11) 20. O-O-O) 19... Nxe4 $19 {[%emt 0:03:35]} 20. Bxe4 {[%emt 0:00:08]} O-O {[%emt 0:09:20]} ({Don't do} 20... Nf6 21. Bd3 Bxb3 (21... Bxd5 22. O-O-O $17) (21... Nxg4 22. Qe2+ Ne5 23. Bxc4 $17) 22. O-O-O Nxg4 (22... Qxd5 23. Qb4 $16) 23. Rhg1 $19) 21. Kf2 $2 {[%emt 0:01:56]} (21. Qh2 Qb6 22. O-O-O (22. Nd2 $2 Qe3+ 23. Kd1 Rfe8 $19) 22... Bxb3 23. Kb1) 21... Rfe8 {[%emt 0:01:36] Black is clearly winning.} 22. Rae1 {[%emt 0:01:05]} Nf6 $1 {[%emt 0:00:46][%csl LRd5,LRe4,LRg4]} 23. Bf3 {[%emt 0:04:54]} Rxe1 {[%emt 0:00:09]} (23... Nxd5 24. Rxe8+ Rxe8 25. Qd4 $11) 24. Qxe1 {[%emt 0:03:27]} Qf4 {[%emt 0:01:29]} ({Less strong is} 24... Nxd5 25. Qd2 $17) 25. Rh3 {[%emt 0:01:33]} Bxb3 {[%emt 0:02:26]} 26. cxb3 {[%emt 0:00:19]} Rc2+ {[%emt 0:00:12]} (26... Nxd5 $2 27. Qe4 Qd2+ 28. Be2 $19) 27. Kg1 {[%emt 0:00:31]} Rc1 {[%emt 0:00:09]} 28. Bd1 {[%emt 0:01:12]} Qd4+ {[%emt 0:00:30] Weighted Error Value: White=1.01/Black=0.03 (flawless) .  Loses game:     	White=2     	---        Mistake:       	White=2     	---        Inaccurate:     	White=1     	Black=1      OK:         	White=2     	Black=4      Best:        	White=2     	Black=1      Strong:       	---       	Black=1} 0-1